Cogmind - Beta 12 @@@ ROGUE MODE // 2023.07.27 @ 14:10:41 Player: Raix Result: Destroyed by Y-45 Defender with Heavy Assault Rifle Performance ------------- Evolutions (1) 500 Regions Visited (3) 600 Robots Destroyed (27) 135 Value Destroyed (675) 675 Prototype IDs (3) 60 Alien Tech Used (0) 0 Bonus (30) 30 TOTAL SCORE: 2000 Bonus ------- High Alert Combat Kills 30 Cogmind --------- Core Integrity 0/400 Matter 274/300 Energy 100/100 System Corruption 5% Temperature Cool (9) Movement Core (100) Ox1 Location -9/Storage Parts ------- > --- POWER (1) -------- (None) > --- PROPULSION (4) --- (None) > --- UTILITY (2) ------ Small Storage Unit Improved Targeting Computer > --- WEAPON (2) ------- (None) > --- INVENTORY (8) ---- Cooled Ion Engine Cooled Ion Engine Cooled Ion Engine Drone Bay (2/2) Drone Bay (2/2) Mini Grenade Launcher Mini Grenade Launcher Peak State ------------ > --- POWER ------------ Cooled Ion Engine > --- PROPULSION ------- Flight Unit Flight Unit Flight Unit Flight Unit > --- UTILITY ---------- Small Storage Unit Improved Targeting Computer > --- WEAPON ----------- Mini Grenade Launcher Mini Grenade Launcher > --- INVENTORY -------- Cooled Ion Engine Cooled Ion Engine Drone Bay Drone Bay [Rating: 15] Favorites ----------- Power Cooled Ion Engine Engine Cooled Ion Engine Propulsion Flight Unit Wheel Wheel Flight Unit Flight Unit Utility Small Storage Unit Device Terrain Scanner Storage Small Storage Unit Processor Improved Targeting Computer Weapon Assault Rifle Energy Gun Medium Laser Ballistic Gun Assault Rifle Launcher Mini Grenade Launcher Build | -11 -10 -9 -9 ------- Run | Jun Mat Mat Sto Slots Evolved 2 | . . 2 . Power . | . . . . Propulsion 2 | . . 2 . Utility . | . . . . Weapon . | . . . . Parts Attached 34 | 5 5 18 6 Power 5 | 1 . 4 . Engine 5 | 1 . 4 . Core . | . . . . Reactor . | . . . . Propulsion 13 | 2 2 8 1 Treads . | . . . . Leg . | . . . . Wheel 2 | 2 . . . Hover . | . . . . Flight 11 | . 2 8 1 Utility 6 | . 1 2 3 Device 2 | . . 1 1 Storage 2 | . 1 1 . Processor 2 | . . . 2 Hackware . | . . . . Protection . | . . . . Artifact . | . . . . Weapon 10 | 2 2 4 2 Energy Gun 2 | 1 1 . . Energy Cannon . | . . . . Ballistic Gun 3 | 1 1 1 . Ballistic Cannon . | . . . . Launcher 5 | . . 3 2 Special Weapon . | . . . . Impact Weapon . | . . . . Slashing Weapon . | . . . . Piercing Weapon . | . . . . Special Melee Weapon . | . . . . Unidentified Prototypes 1 | . . 1 . Parts Lost 9 | . . 4 5 Power 1 | . . 1 . Propulsion 8 | . . 3 5 Utility . | . . . . Weapon . | . . . . Highest Loss Streak 4 | . . 2 4 To Critical Strikes . | . . . . Average Slot Usage (%) 76 | . 80 82 58 Engine 10 | . 14 10 6 Wheel 2 | . 15 . . Flight 31 | . 12 40 23 Device 3 | . . 5 . Storage 13 | . 12 14 11 Processor 2 | . . . 10 Energy Gun 4 | . 12 3 . Ballistic Gun 6 | . 11 7 . Launcher 1 | . . . 6 Naked Turns . | . . . . Heaviest Build 17 | 7 12 17 16 Greatest Support 20 | 20 20 16 16 Greatest Overweight (x) 4 | . 1 4 1 Average Overweight (x) . | . . . . Largest Inventory Capacity 8 | 5 8 8 8 Average Capacity 7 | 5 7 8 8 Most Carried 8 | 5 8 8 8 Average Carried 6 | 3 6 7 6 Final Capacity 8 | 5 8 8 8 Final Carried 8 | 4 7 8 7 Class Distribution -------------------- 59% | Mutant 40% | Sprinter Dominant Class ---------------- Mutant | -10/Materials Sprinter | -9/Materials Mutant | -9/Storage Resources | -11 -10 -9 -9 ----------- Run | Jun Mat Mat Sto Matter Collected 1023 | 256 57 461 249 Remotely . | . . . . Salvage Created 659 | 40 57 331 231 Parts 45 | 1 3 31 10 Haulers Intercepted . | . . . . Recyclers Shooed . | . . . . Parts Field Recycled . | . . . . Retrieved Matter . | . . . . Parts Self-Destructed . | . . . . Prevented . | . . . . Kills | -11 -10 -9 -9 ------- Run | Jun Mat Mat Sto Combat Hostiles Destroyed 20 | 1 1 11 7 Guns 12 | 1 1 10 . AOE 8 | . . 1 7 Classes Destroyed 9 | 1 1 3 4 Worker 1 | . . . 1 Builder 1 | . . 1 . Recycler 1 | . . . 1 Mechanic 1 | . . . 1 Watcher 3 | . 1 2 . Swarmer 7 | . . 7 . Grunt 7 | 1 1 2 3 Brawler 1 | . . . 1 Sentry 5 | . . 2 3 Best Kill Streak 10 | 1 1 7 10 Combat Bots Only 7 | 1 1 6 7 Max Kills in Single Turn 3 | 1 1 1 3 Gunslinging . | . . . . Exploded 2 | . . 1 2 Melee . | . . . . Uniques/NPCs Destroyed . | . . . . Combat | -11 -10 -9 -9 -------- Run | Jun Mat Mat Sto Damage Taken 1171 | 33 24 568 546 Core 421 | 11 . 161 249 Absorbed by Shields . | . . . . Regen/Repaired (Parts) 7 | . . 7 . Core Remaining (%) 95 | 95 95 . . Volleys Fired 60 | 2 5 41 12 Largest 2 | 2 2 2 2 Hottest 70 | 70 70 70 60 Shots Fired 102 | 4 10 64 24 Gun 72 | 4 10 58 . Cannon . | . . . . Launcher 30 | . . 6 24 Special . | . . . . Kinetic 47 | 2 5 40 . Thermal 25 | 2 5 18 . Explosive 30 | . . 6 24 Electromagnetic . | . . . . Robot Hit Streak 22 | 3 4 7 22 Robot Miss Streak 5 | . 3 5 . Penetration Max . | . . . . Secondary Targets . | . . . . Shots Hit Robots 61 | 3 5 37 16 Core Hits 49 | 2 3 22 22 Critical Kills . | . . . . Critical Parts Destroyed . | . . . . Critical Strikes . | . . . . Melee Attacks . | . . . . Impact . | . . . . Slashing . | . . . . Piercing . | . . . . Sneak Attacks . | . . . . Combat Hostiles . | . . . . Follow-up Attacks . | . . . . Damage Inflicted 1684 | 37 62 609 976 Guns 489 | 37 62 390 . Cannons . | . . . . Explosions 1195 | . . 219 976 Melee . | . . . . Ramming . | . . . . Kinetic 312 | 24 37 251 . Thermal 177 | 13 25 139 . Explosive 1195 | . . 219 976 Electromagnetic . | . . . . Impact . | . . . . Slashing . | . . . . Piercing . | . . . . Highest Corruption 5 | . . . 5 Average Corruption 5 | . . . 5 Corruption Purged . | . . . . Corruption Blocked . | . . . . Effects 2 | . . . 2 Message Errors 2 | . . . 2 Overload Shots . | . . . . Overflow Damage 47 | . . 47 . Projectiles . | . . . . Explosions 47 | . . 47 . Melee . | . . . . Knockbacks . | . . . . Impact . | . . . . Kinetic . | . . . . Secondary . | . . . . Self-Inflicted Damage 37 | . . 37 . Shots 1 | . . 1 . Rammed . | . . . . Targets Rammed . | . . . . Kicked . | . . . . Crushed . | . . . . Highest Temperature 220 | 24 51 220 36 Average Temperature 47 | 13 20 70 18 Received Heat Transfer 246 | 18 12 90 126 Siege Activations . | . . . . Robots Corrupted . | . . . . Combat Hostiles . | . . . . Parts Fried . | . . . . Impact Corruptions . | . . . . Robots Melted . | . . . . Combat Hostiles . | . . . . Parts Melted 1 | . 1 . . Heat Transferred 518 | 37 74 407 . Parts Sabotaged . | . . . . Parts Stolen . | . . . . Parts Stripped . | . . . . Power Chain Reactions . | . . . . Missiles Intercepted . | . . . . Alert | -11 -10 -9 -9 ------- Run | Jun Mat Mat Sto Peak Influence 502 | 20 80 469 502 Initial 197 | . 13 33 197 Average 232 | 3 40 292 369 Maximum Alert Level 2 | . . 2 2 Low Security (%) 42 | 100 100 21 14 Level 1 31 | . . 49 29 Level 2 25 | . . 28 55 Level 3 . | . . . . Level 4 . | . . . . Level 5 . | . . . . High Security . | . . . . Max Security . | . . . . Squads Dispatched 6 | . 1 3 2 Investigation 2 | . 1 . 1 Extermination . | . . . . Reinforcement 4 | . . 3 1 Assault . | . . . . Garrison . | . . . . Intercept . | . . . . Searches Triggered . | . . . . Construction Impeded . | . . . . Haulers Reinforced . | . . . . Active Scanning Responses . | . . . . Cargo Convoy Interrupts . | . . . . Stealth | -11 -10 -9 -9 --------- Run | Jun Mat Mat Sto Distress Signals 4 | . . 3 1 Communications Jammed . | . . . . Distress Signals . | . . . . Times Spotted 37 | 1 3 22 11 Peak Tracking Total 6 | 1 2 6 6 Tactical Retreats 1 | . . 1 . Traps | -11 -10 -9 -9 ------- Run | Jun Mat Mat Sto Traps Triggered 3 | . . 1 2 Indirectly . | . . . . Trap Hack Attempts . | . . . . Triggered . | . . . . Disarmed . | . . . . Reprogrammed . | . . . . Reused . | . . . . Traps Extracted . | . . . . Installed . | . . . . Triggered . | . . . . Machines | -11 -10 -9 -9 ---------- Run | Jun Mat Mat Sto Machines Disabled 2 | . . . 2 Max in Single Turn 1 | . . . 1 Machines Repaired . | . . . . Machines Sabotaged . | . . . . Overloaded Fab Kills . | . . . . Hacking | -11 -10 -9 -9 --------- Run | Jun Mat Mat Sto Machines Accessed 7 | . 1 4 2 Terminals 3 | . . 1 2 Fabricators . | . . . . Repair Stations 1 | . . 1 . Recycling Units 2 | . 1 1 . Scanalyzers 1 | . . 1 . Garrison Access . | . . . . Total Hacks 17 | . 3 9 5 Successful 11 | . 1 7 3 Failed 6 | . 2 2 2 Catastrophic 1 | . . 1 . Database Lockouts . | . . . . Manual . | . . . . Terminals 8 | . . 3 5 Fabricators . | . . . . Repair Stations 2 | . . 2 . Recycling Units 5 | . 3 2 . Scanalyzers 2 | . . 2 . Garrison Access . | . . . . Terminal Hacks 5 | . . 2 3 Record 2 | . . 2 . Prototype ID Bank 1 | . . . 1 Open Door 1 | . . . 1 Registered Prototypes 1 | . . . 1 Fabricator Hacks . | . . . . Repair Station Hacks 2 | . . 2 . Scan Component 1 | . . 1 . Repair 1 | . . 1 . Recycling Unit Hacks 2 | . 1 1 . Retrieve Components 2 | . 1 1 . Scanalyzer 2 | . . 2 . Insert Component 1 | . . 1 . Analyze 1 | . . 1 . Garrison Access Hacks . | . . . . Unauthorized Hacks . | . . . . Terminals . | . . . . Fabricators . | . . . . Repair Stations . | . . . . Recycling Units . | . . . . Scanalyzers . | . . . . Garrison Access . | . . . . Data Cores Recovered . | . . . . Used . | . . . . Hacking Detections 5 | . 1 3 1 Full Trace Events 3 | . 1 2 . Feedback Events . | . . . . Feedback Blocked . | . . . . Robot Schematics Acquired . | . . . . Robots Built . | . . . . Authchips . | . . . . Time . | . . . . Total Robot Build Rating . | . . . . Part Schematics Acquired 1 | . . 1 . Parts Built . | . . . . Authchips . | . . . . Time . | . . . . Total Part Build Rating . | . . . . Parts Repaired 1 | . . 1 . Time 26 | . . 26 . Parts Recycled . | . . . . Recycled Matter . | . . . . Retrieved Matter . | . . . . Retrieved Components 5 | . 3 2 . Parts Scanalyzed 1 | . . 1 . Part Schematics Acquired 1 | . . 1 . Parts Damaged . | . . . . Bothacking | -11 -10 -9 -9 ------------ Run | Jun Mat Mat Sto Used RIF Installer . | . . . . Robots Hacked . | . . . . Non-combat . | . . . . Combat . | . . . . Robot Hacks Applied . | . . . . Relay Couplers Released . | . . . . Fabnet Peak Effective % . | . . . . Robots Rewired . | . . . . Allies Hacked . | . . . . Hacks Repelled . | . . . . Allies | -11 -10 -9 -9 -------- Run | Jun Mat Mat Sto Total Allies . | . . . . Largest Group . | . . . . Highest-Rated Group . | . . . . Highest-Rated Ally . | . . . . Total Orders . | . . . . Ally Attacks . | . . . . Total Damage . | . . . . Kills . | . . . . Allies Corrupted . | . . . . Allies Melted . | . . . . Intel | -11 -10 -9 -9 ------- Run | Jun Mat Mat Sto Robot Analysis Total . | . . . . Derelict Logs Recovered . | . . . . Drone Launches . | . . . . Drone Recoveries . | . . . . Exploration | -11 -10 -9 -9 ------------- Run | Jun Mat Mat Sto Turns Passed 762 | 81 137 388 156 Spaces Moved 1017 | 96 127 636 158 Core 100 | 53 . 2 45 Treads . | . . . . Legs . | . . . . Wheels 115 | 43 72 . . Hover . | . . . . Flight 802 | . 55 634 113 Fastest Speed 31 | 50 37 31 31 Average Speed 48 | 63 80 35 66 Slowest Speed 250 | 80 117 250 120 Overloaded Moves . | . . . . Propulsion Burnouts . | . . . . Robots Hopped 1 | . . 1 . Cave-ins Triggered 1 | . . . 1 Exploration Rate (%) 29 | 7 22 47 40 Regions Visited 3 Branch Regions 1 Pre-discovered Areas . | . . . . Known Exits Taken . | . . . . Unknown Exits Taken 3 | 1 1 1 . Scrap Searched . | . . . . Spaces Dug . | . . . . Terrain Destroyed 111 | . . 54 57 Melee . | . . . . Projectile . | . . . . AOE 111 | . . 54 57 Terrain Rammed . | . . . . Walls Destroyed . | . . . . Machines Disabled . | . . . . Actions | -11 -10 -9 -9 --------- Run | Jun Mat Mat Sto Total 1198 | 111 156 745 186 Wait 5 | . . 5 . Move 1012 | 95 126 633 158 Hop 1 | . . 1 . Pick Up 48 | 9 11 25 3 Fast Attach . | . . . . Attach 28 | 5 5 14 4 Detach 10 | . 2 4 4 Swap 6 | . . 4 2 Drop 28 | . 7 18 3 Fire 60 | 2 5 41 12 Melee . | . . . . Ram . | . . . . Kick . | . . . . Crush . | . . . . Escape Stasis . | . . . . Rewire . | . . . . Trap . | . . . . Miscellaneous . | . . . . Route ------- -11/Junkyard -10/Materials -9/Materials -9/Storage History --------- Turn | Location | Event 2 | -11/Junkyard | Met Revision 17 56 | -11/Junkyard | Discovered new exit (range 8) 82 | -11/Junkyard | Entered Materials 167 | -10/Materials | Discovered new exit (range 16) 219 | -10/Materials | Entered another Materials area 219 | -9/Materials | Evolved 2 slots: Propulsion x2 318 | -9/Materials | Met 8R-AWN 459 | -9/Materials | Repaired Terrain Scanner? 570 | -9/Materials | Discovered new exit (range 6) 607 | -9/Materials | Entered Storage 671 | -9/Storage | Core integrity fell below 50% 688 | -9/Storage | Crushed by falling debris 717 | -9/Storage | Destroyed 7 combat bots 734 | -9/Storage | Core integrity fell below 20% 749 | -9/Storage | Lost 4 parts (4n) 763 | -9/Storage | Destroyed by Y-45 Defender with Heavy Assault Rifle Last Messages --------------- 00718_ Flight Unit destroyed. 00719_ The unstable cave ceiling collapses. 00720_ U-05 Engineer builds a Wall. 00720_ K-01 Serf cleans the Compression Vault. 00727_ O-16 Technician: "IFF HANDSHAKE FAILED. SECURING TERMINAL." 00731_ Acquired 87 matter. 00731_ O-16 Technician uses terminal to summon reinforcements. 00731_ ALERT: Hostiles spotted, dispatching reinforcements to Terminal S011. 00731_ O-16 Technician locks terminal. 00733_ Triggered EMP Trap. 00733_ A bubble of electromagnetic force engulfs the area. 00733_ EMP Trap short circuited. 00733_ Compression Vault explodes. 00733_ A bubble of electromagnetic force engulfs the area. 00733_ Repair Station disabled. 00740_ LFFW7PQQ/RB 7K YAOVB=BT 00746_ The unstable cave ceiling collapses. 00747_ Acquired 92 matter. 00748_ The unstable cave ceiling collapses. Map ----- +----------------------------------------------------+ | | | | | | | | | | | | | | | | | | | | | | | ???????????????????###?#####??????????????????? | | ??????????????????# ?????????????????? | | ??????????????????# #?????????????????? | | ??????????????????? | #?????????????????? | | ??????????????????? #?????????????????? | | ??????????????????# """ """ #?????????????????? | | ??????????????????# """ """ #?????????????????? | | ??????????????????# """ """ #?????????????????? | | ??????????????????# #?#???????????????? | | ??????????????????########+##T#"??????????????? | | ??????????############## "??????????????? | | ??????????# ! # "??????????????? | | ??????????# ! # #####"??????????????? | | ??????????# #Y #???????????????????? | | ??????????# ! + @#???????????????????? | | ?????????## = # #???????????????????? | | ????????## # /#### #???????????????????? | | ????????# # ### #??????????????????? | | ????????# #??????????????????? | | ????????# +??????????????????? | | ?#####?## || ### #??????????????????? | | ?#"""#?#"|| #?######??????????????????? | | ##"T"###T||| # #?????????????????????????? | | #" # #?????????????????????????? | | """ ## " # #?????????????????????????? | | """ ## # #?????????????????????????? | | """ #####+##### #?????????????????????????? | | #???# #???? ??????????????????????????? | | ##??# ##### #?????????????????????????? | | #??# #?????????????????????????? | | ####+###### #?????????????????????????? | | [ #???????????????????????????? | | ###/## # """ """ #???????????????????????????? | | !""" """ #???????????????????????????? | | = = """ """ #???????????????????????????? | | +???????????????????????????? | | ### ## # #???????????????????????????? | | ## # #???????????????????????????? | | ?# #???????????????????????????? | +----------------------------------------------------+ Best States ------------- Heat Dissipation 28 Energy Generation 14 Energy Capacity 280 Matter Stores 450 Matter Capacity 450 Sight Range 16 Terrain Scan Range 14 Terrain Scan Density 10 Evasion (%) 63 Targeting Accuracy 6 Item Schematics ----------------- Flight Unit | -9/Materials | Scanalyzed Robot Schematics ------------------ None Fabricated ------------ Nothing Alien Tech Used ----------------- None Achievements -------------- None Challenges ------------ None Game ------ Seed HeartRemoteAccelerator Manual? 0 Play Time 00:20:30 Cumulative 1.9 hours Start 2023.07.27 @ 13:49:43 End 2023.07.27 @ 14:10:41 Sessions 1 Manual Loads 0 Difficulty Rogue Special Mode None Game No. 1 Rogue 1 Adventurer 0 Explorer 0 Win Type - Total 0 Types 0/0/0/0/0/0/0/0/0 Lore% 1 Gallery% 2 Achievement% 21 Wizard Run 0 Options --------- ASCII 0 Keyboard 0 Movement Numpad Keybinds 0 Fullscreen 1 Font 18/SmallcapsGlow Map View 76x50 Tactical HUD 1 Map Filters NONE Filters NONE Steam 1 RUN: fb67d228-c6c0-4c93-9a50-912cc29b496f